fUSD/lending_fUSD_20260628
["ID","MTS","AMOUNT","RATE_DAILY","PERIOD"]
[426566735,1782597041000,-215.37384756,0.0002633,2]
[426566736,1782597041000,-407.15264794,0.0002633,2]
[426566714,1782597041000,-432.6875066,0.00026324,2]
[426566725,1782597041000,-403.20721148,0.00026324,2]
[426566710,1782597041000,-475.51649689,0.00026324,2]
[426566699,1782597041000,-500.0,0.00026323,2]
[426566711,1782597041000,-413.70914375,0.00026324,2]
[426566737,1782597041000,-549.10676758,0.0002633,2]
[426566685,1782597041000,-151.06722325,0.00025772,2]
[426566687,1782597041000,-514.35958644,0.00025906,2]
[426566688,1782597041000,-411.29648883,0.00026,2]
[426566686,1782597041000,-163.25567929,0.00025799,2]
[426566692,1782597041000,-167.63,0.00026027,7]
[426566689,1782597041000,-566.20912469,0.00026021,2]
[426566690,1782597041000,-500.0,0.00026021,2]
[426566691,1782597041000,-500.0,0.00026021,2]
[426566693,1782597041000,-232.14,0.00026027,7]
[426566694,1782597041000,-150.0,0.00026102,5]
[426566695,1782597041000,-514.35958644,0.0002618,2]
[426566696,1782597041000,-239.0,0.00026209,2]
[426566697,1782597041000,-411.29648883,0.00026222,2]
[426566698,1782597041000,-166.66,0.00026312,2]
[426566701,1782597041000,-500.0,0.00026323,2]
[426566702,1782597041000,-246.48157726,0.00026324,2]
[426566703,1782597041000,-223.92181027,0.00026324,2]
[426566700,1782597041000,-500.0,0.00026323,2]
[426566704,1782597041000,-442.41802345,0.00026324,2]
[426566706,1782597041000,-326.0292414,0.00026324,2]
[426566709,1782597041000,-374.71402308,0.00026324,2]
[426566708,1782597041000,-420.85316974,0.00026324,2]
[426566707,1782597041000,-583.16684918,0.00026324,2]
[426566705,1782597041000,-496.18720085,0.00026324,2]
[426566712,1782597041000,-329.79977385,0.00026324,2]
[426566740,1782597041000,-429.52603355,0.0002633,2]
[426566739,1782597041000,-486.29718963,0.0002633,2]
[426566784,1782597041000,-500.0,0.00027123,2]
[426566773,1782597041000,-411.29648883,0.00026889,2]
[426566774,1782597041000,-990.92185821,0.00026889,2]
[426566775,1782597041000,-1027.10526649,0.00026889,2]
[426566777,1782597041000,-1207.32,0.00026936,2]
[426566779,1782597041000,-1795.6272654,0.00027037,2]
[426566782,1782597041000,-411.29648883,0.00027111,2]
[426566776,1782597041000,-878.09088921,0.00026889,2]
[426566781,1782597041000,-452.2240856,0.00027037,2]
[426566778,1782597041000,-514.35958644,0.00027002,2]
[426566780,1782597041000,-21021.9778602,0.00027037,2]
[426566785,1782597041000,-500.0,0.00027123,2]
[426566786,1782597041000,-464.80793422,0.00027123,2]
[426566783,1782597041000,-500.0,0.00027123,2]
[426566787,1782597041000,-500.0,0.00027123,2]
[426566789,1782597041000,-500.0,0.00027123,2]
[426566788,1782597041000,-500.0,0.00027123,2]
[426566793,1782597041000,-500.0,0.00027123,2]
[426566792,1782597041000,-500.0,0.00027123,2]
[426566794,1782597041000,-500.0,0.00027123,2]
[426566791,1782597041000,-500.0,0.00027123,2]
[426566790,1782597041000,-500.0,0.00027123,2]
[426566796,1782597041000,-500.0,0.00027123,2]
[426566795,1782597041000,-500.0,0.00027123,2]
[426566797,1782597041000,-500.0,0.00027123,2]
[426566741,1782597041000,-787.56449486,0.0002633,2]
[426566772,1782597041000,-4676.73887453,0.0002677,2]
[426566769,1782597041000,-514.35958644,0.00026454,2]
[426566771,1782597041000,-514.35958644,0.00026728,2]
[426566768,1782597041000,-176.05,0.00026444,2]
[426566743,1782597041000,-703.8252469,0.0002633,2]
[426566742,1782597041000,-821.68421319,0.0002633,2]
[426566747,1782597041000,-441.67220829,0.00026331,2]
[426566746,1782597041000,-455.69226592,0.0002633,2]
[426566744,1782597041000,-831.70740082,0.0002633,2]
[426566745,1782597041000,-702.47271137,0.0002633,2]
[426566749,1782597041000,-180.61043666,0.00026331,2]
[426566748,1782597041000,-438.96510715,0.00026331,2]
[426566770,1782597041000,-411.29648883,0.00026667,2]
[426566751,1782597041000,-306.72880339,0.00026331,2]
[426566752,1782597041000,-206.87843548,0.00026331,2]
[426566754,1782597041000,-331.41451736,0.00026331,2]
[426566753,1782597041000,-353.41405584,0.00026331,2]
[426566755,1782597041000,-328.65495006,0.00026331,2]
[426566750,1782597041000,-187.02954154,0.00026331,2]
[426566766,1782597041000,-454.58578422,0.00026397,2]
[426566757,1782597041000,-223.62224596,0.00026331,2]
[426566758,1782597041000,-184.41647312,0.00026331,2]
[426566760,1782597041000,-303.70951914,0.00026331,2]
[426566761,1782597041000,-302.13444651,0.00026331,2]
[426566759,1782597041000,-352.33007531,0.00026331,2]
[426566762,1782597041000,-165.82112764,0.00026331,2]
[426566763,1782597041000,-1230.42514403,0.00026335,14]
[426566765,1782597041000,-263.9346717,0.00026397,2]
[426566764,1782597041000,-3247.11142232,0.00026335,14]
[426566767,1782597041000,-411.29648883,0.00026444,2]
[426566756,1782597041000,-326.45311094,0.00026331,2]
[426566835,1782597042000,-500.0,0.000275,7]
[426566840,1782597042000,-405.0,0.00027667,2]
[426566836,1782597042000,-514.35958644,0.0002755,2]
[426566837,1782597042000,-411.29648883,0.00027556,2]
[426566834,1782597042000,-932.89,0.000274,7]
[426566828,1782597042000,-411.29648883,0.00027333,2]
[426566830,1782597042000,-303.05718948,0.00027397,7]
[426566831,1782597042000,-1500.0,0.00027397,2]
[426566833,1782597042000,-1075.54,0.000274,7]
[426566832,1782597042000,-150.0,0.000274,7]
[426566839,1782597042000,-3568.441,0.00027667,2]
[426566838,1782597042000,-171.18830896,0.00027573,7]
[426566843,1782597042000,-1281.426,0.00027667,2]
[426566854,1782597042000,-2662.69277048,0.00028124,2]
[426566844,1782597042000,-935.0,0.00027667,2]
[426566841,1782597042000,-1234.592,0.00027667,2]
[426566845,1782597042000,-3688.823,0.00027667,2]
[426566846,1782597042000,-411.29648883,0.00027778,2]
[426566849,1782597042000,-11594.3949,0.00027835,14]
[426566847,1782597042000,-5728.28944138,0.00027835,14]
[426566848,1782597042000,-8569.17841782,0.00027835,14]
[426566851,1782597042000,-273.89,0.00027949,7]
[426566852,1782597042000,-161.0,0.00028,14]
[426566850,1782597042000,-199.07,0.00027949,7]
[426566856,1782597042000,-156.45618948,0.00028302,2]
[426566829,1782597042000,-273.89,0.0002735,7]
[426566842,1782597042000,-1361.0,0.00027667,2]
[426566824,1782597042000,-500.0,0.0002725,2]
[426566799,1782597042000,-409.85654528,0.00027123,2]
[426566826,1782597042000,-5252.9459038,0.00027283,2]
[426566798,1782597042000,-500.0,0.00027123,2]
[426566800,1782597042000,-500.0,0.00027123,2]
[426566802,1782597042000,-500.0,0.00027123,2]
[426566801,1782597042000,-560.35118456,0.00027123,2]
[426566804,1782597042000,-500.0,0.00027123,2]
[426566806,1782597042000,-500.0,0.00027123,2]
[426566805,1782597042000,-500.0,0.00027123,2]
[426566803,1782597042000,-150.0,0.00027123,2]
[426566807,1782597042000,-475.40701377,0.00027123,2]
[426566809,1782597042000,-150.0,0.00027123,2]
[426566808,1782597042000,-150.0,0.00027123,2]
[426566810,1782597042000,-200.0,0.00027123,2]
[426566827,1782597042000,-185.64927569,0.000273,30]
[426566812,1782597042000,-500.0,0.00027123,2]
[426566811,1782597042000,-500.0,0.00027123,2]
[426566815,1782597042000,-500.0,0.00027123,2]
[426566814,1782597042000,-500.0,0.00027123,2]
[426566821,1782597042000,-500.0,0.00027123,2]
[426566819,1782597042000,-500.0,0.00027123,2]
[426566817,1782597042000,-500.0,0.00027123,2]
[426566816,1782597042000,-500.0,0.00027123,2]
[426566818,1782597042000,-500.0,0.00027123,2]
[426566820,1782597042000,-500.0,0.00027123,2]
[426566823,1782597042000,-150.0,0.00027146,5]
[426566822,1782597042000,-180.31101863,0.00027123,2]
[426566825,1782597042000,-514.35958644,0.00027276,2]
[426566813,1782597042000,-262.0005398,0.00027123,2]
[426566853,1782597042000,-411.29648883,0.00028,2]
[426566855,1782597042000,-162.05860135,0.00028273,2]
[426566923,1782597042000,-152.0,0.00029983,4]
[426566895,1782597042000,-500.0,0.00029184,7]
[426566896,1782597042000,-500.0,0.00029184,7]
[426566900,1782597042000,-188.04997761,0.00029437,2]
[426566902,1782597042000,-188.04997762,0.00029437,2]
[426566903,1782597042000,-1197.56169799,0.00029589,2]
[426566904,1782597042000,-1075.54,0.000296,7]
[426566905,1782597042000,-932.89,0.000296,7]
[426566906,1782597042000,-553.0,0.00029644,30]
[426566907,1782597042000,-520.0,0.00029644,30]
[426566908,1782597042000,-210.0,0.00029644,30]
[426566912,1782597042000,-167.0,0.00029644,30]
[426566911,1782597042000,-195.0,0.00029644,30]
[426566897,1782597042000,-35575.0,0.00029184,20]
[426566910,1782597042000,-568.0,0.00029644,30]
[426566914,1782597042000,-162.0,0.00029644,30]
[426566915,1782597042000,-184.0,0.00029644,30]
[426566917,1782597042000,-260.0,0.00029644,30]
[426566916,1782597042000,-156.0,0.00029644,30]
[426566913,1782597042000,-831.0,0.00029644,30]
[426566919,1782597042000,-227.0,0.00029756,10]
[426566918,1782597042000,-152.0,0.00029644,30]
[426566920,1782597042000,-1197.56169799,0.00029795,2]
[426566922,1782597042000,-196.65720681,0.00029976,2]
[426566921,1782597042000,-250.0,0.00029831,7]
[426566924,1782597042000,-1197.56169799,0.0003,2]
[426566925,1782597042000,-2164.84379324,0.0003,10]
[426566909,1782597042000,-153.0,0.00029644,30]
[426566898,1782597042000,-1197.56169799,0.00029384,2]
[426566858,1782597042000,-837.73,0.00028364,7]
[426566891,1782597042000,-152.0,0.00028982,3]
[426566857,1782597042000,-373.48,0.00028364,7]
[426566860,1782597042000,-303.05718948,0.00028397,7]
[426566861,1782597042000,-1075.54,0.000284,7]
[426566859,1782597042000,-12272.84,0.00028364,7]
[426566863,1782597042000,-182.0,0.00028451,5]
[426566862,1782597042000,-932.89,0.000284,7]
[426566864,1782597042000,-1688.0,0.00028606,5]
[426566899,1782597042000,-151.95595905,0.00029437,2]
[426566866,1782597042000,-520.0,0.00028644,30]
[426566867,1782597042000,-210.0,0.00028644,30]
[426566868,1782597042000,-153.0,0.00028644,30]
[426566870,1782597042000,-568.0,0.00028644,30]
[426566872,1782597042000,-167.0,0.00028644,30]
[426566865,1782597042000,-553.0,0.00028644,30]
[426566873,1782597042000,-831.0,0.00028644,30]
[426566894,1782597042000,-1197.56169799,0.00029178,2]
[426566871,1782597042000,-195.0,0.00028644,30]
[426566893,1782597042000,-2181.0,0.00029,7]
[426566887,1782597042000,-1197.56169799,0.00028973,2]
[426566881,1782597042000,-166.55252985,0.00028739,2]
[426566879,1782597042000,-251.03228175,0.00028658,2]
[426566885,1782597042000,-4676.73887453,0.00028902,2]
[426566883,1782597042000,-1197.56169799,0.00028767,2]
[426566878,1782597042000,-151.0,0.00028644,30]
[426566877,1782597042000,-260.0,0.00028644,30]
[426566874,1782597042000,-162.0,0.00028644,30]
[426566875,1782597042000,-184.0,0.00028644,30]
[426566876,1782597042000,-156.0,0.00028644,30]
[426566963,1782597043000,-1361.0,0.00030667,2]
[426566967,1782597043000,-188.04997761,0.00030789,2]
[426566965,1782597043000,-3649.0,0.00030667,2]
[426566961,1782597043000,-282.0,0.00030667,2]
[426566962,1782597043000,-1230.0,0.00030667,2]
[426566954,1782597043000,-260.0,0.00030644,30]
[426566960,1782597043000,-3563.0,0.00030667,2]
[426566956,1782597043000,-151.0,0.00030667,7]
[426566957,1782597043000,-151.0,0.00030667,7]
[426566958,1782597043000,-151.0,0.00030667,7]
[426566959,1782597043000,-151.0,0.00030667,7]
[426566964,1782597043000,-935.0,0.00030667,2]
[426566978,1782597043000,-151.0,0.00031108,7]
[426566966,1782597043000,-924.37,0.00030746,30]
[426566968,1782597043000,-908.48,0.00030822,2]
[426566969,1782597043000,-379.785613,0.0003096,7]
[426566971,1782597043000,-151.0,0.0003096,7]
[426566972,1782597043000,-152.0,0.00030985,5]
[426566974,1782597043000,-160.0,0.00031,30]
[426566973,1782597043000,-1000.0,0.00031,7]
[426566975,1782597043000,-908.48,0.00031027,2]
[426566977,1782597043000,-227.0,0.00031062,10]
[426566976,1782597043000,-4676.73887453,0.00031035,2]
[426566979,1782597043000,-35575.0,0.00031109,20]
[426566955,1782597043000,-151.0,0.00030667,7]
[426566970,1782597043000,-382.304854,0.0003096,7]
[426566952,1782597043000,-184.0,0.00030644,30]
[426566938,1782597043000,-1197.56169799,0.00030411,2]
[426566947,1782597043000,-568.0,0.00030644,30]
[426566980,1782597043000,-230.63783435,0.00031139,2]
[426566926,1782597043000,-151.0,0.0003,7]
[426566928,1782597043000,-1164.29419662,0.00030137,30]
[426566927,1782597043000,-1929.52,0.00030099,2]
[426566930,1782597043000,-345.9,0.000302,11]
[426566929,1782597043000,-35575.0,0.00030146,20]
[426566931,1782597043000,-1197.56169799,0.00030205,2]
[426566933,1782597043000,-1474.0,0.00030239,5]
[426566932,1782597043000,-1353.0,0.00030239,5]
[426566934,1782597043000,-500.0,0.00030301,2]
[426566936,1782597043000,-1075.54,0.000304,7]
[426566937,1782597043000,-932.89,0.000304,7]
[426566935,1782597043000,-156.45618948,0.00030302,2]
[426566939,1782597043000,-500.0,0.00030438,2]
[426566941,1782597043000,-200.905,0.00030577,26]
[426566940,1782597043000,-1893.606,0.00030577,26]
[426566942,1782597043000,-1197.56169799,0.00030616,2]
[426566944,1782597043000,-520.0,0.00030644,30]
[426566946,1782597043000,-153.0,0.00030644,30]
[426566945,1782597043000,-210.0,0.00030644,30]
[426566943,1782597043000,-553.0,0.00030644,30]
[426566948,1782597043000,-195.0,0.00030644,30]
[426566949,1782597043000,-167.0,0.00030644,30]
[426566951,1782597043000,-162.0,0.00030644,30]
[426566950,1782597043000,-831.0,0.00030644,30]
[426566953,1782597043000,-156.0,0.00030644,30]
[426566981,1782597043000,-2662.69277048,0.00031146,2]
[426566997,1782597043000,-151.0,0.00031507,7]
[426566982,1782597043000,-200.0,0.000312,11]
[426567015,1782597043000,-235.77005,0.00031507,7]
[426567014,1782597043000,-235.77005,0.00031507,7]
[426567018,1782597043000,-151.0,0.00031507,7]
[426567017,1782597043000,-151.0,0.00031507,7]
[426567016,1782597043000,-194.866053,0.00031507,7]
[426567019,1782597043000,-235.77005,0.00031507,7]
[426567020,1782597043000,-194.866053,0.00031507,7]
[426567022,1782597043000,-194.866053,0.00031507,7]
[426567023,1782597043000,-151.0,0.00031507,7]
[426567021,1782597043000,-151.0,0.00031507,7]
[426567024,1782597043000,-151.0,0.00031507,7]
[426566983,1782597043000,-908.48,0.00031233,2]
[426567027,1782597043000,-151.0,0.00031507,7]
[426567026,1782597043000,-151.0,0.00031507,7]
[426567029,1782597043000,-151.0,0.00031507,7]
[426567028,1782597043000,-151.0,0.00031507,7]
[426567030,1782597043000,-151.0,0.00031507,7]
[426567031,1782597043000,-151.0,0.00031507,7]
[426567032,1782597043000,-151.0,0.00031507,7]
[426567033,1782597043000,-151.0,0.00031507,7]
[426567037,1782597043000,-156.804658,0.00031507,7]
[426567036,1782597043000,-273.352777,0.00031507,7]
[426567035,1782597043000,-151.0,0.00031507,7]
[426567034,1782597043000,-151.0,0.00031507,7]
[426567038,1782597043000,-152.386692,0.00031507,7]
[426567012,1782597043000,-235.77005,0.00031507,7]
[426567013,1782597043000,-194.866053,0.00031507,7]
[426567025,1782597043000,-186.293368,0.00031507,7]
[426567010,1782597043000,-294.080741,0.00031507,7]
[426566984,1782597043000,-320.4136618,0.00031355,30]
[426567011,1782597043000,-151.0,0.00031507,7]
[426566986,1782597043000,-151.0,0.00031392,7]
[426566985,1782597043000,-151.0,0.00031392,7]
[426566990,1782597043000,-151.0,0.000315,7]
[426566987,1782597043000,-296.767751,0.00031392,7]
[426566989,1782597043000,-164.34,0.00031452,30]
[426566988,1782597043000,-908.48,0.00031438,2]
[426566991,1782597043000,-2181.0,0.000315,7]
[426566993,1782597043000,-151.0,0.00031507,7]
[426566996,1782597043000,-260.175331,0.00031507,7]
[426566995,1782597043000,-151.0,0.00031507,7]
[426566992,1782597043000,-151.0,0.00031507,7]
[426567005,1782597043000,-151.0,0.00031507,7]
[426566998,1782597043000,-151.0,0.00031507,7]
[426566999,1782597043000,-1349.829094,0.00031507,7]
[426567000,1782597043000,-1349.829094,0.00031507,7]
[426567002,1782597043000,-1349.829094,0.00031507,7]
[426567001,1782597043000,-1349.829094,0.00031507,7]
[426567004,1782597043000,-151.0,0.00031507,7]
[426567003,1782597043000,-189.449642,0.00031507,7]
[426567009,1782597043000,-151.0,0.00031507,7]
[426567006,1782597043000,-189.449642,0.00031507,7]
[426567007,1782597043000,-189.449642,0.00031507,7]
[426566994,1782597043000,-151.0,0.00031507,7]
[426567008,1782597043000,-189.449642,0.00031507,7]
[426567078,1782597044000,-151.0,0.00031644,7]
[426567079,1782597044000,-151.0,0.00031644,7]
[426567075,1782597044000,-241.400059,0.00031507,7]
[426567077,1782597044000,-151.0,0.00031507,7]
[426567080,1782597044000,-151.0,0.00031644,7]
[426567076,1782597044000,-200.071432,0.00031507,7]
[426567070,1782597044000,-151.0,0.00031507,7]
[426567072,1782597044000,-157.133539,0.00031507,7]
[426567073,1782597044000,-151.0,0.00031507,7]
[426567069,1782597044000,-157.133539,0.00031507,7]
[426567081,1782597044000,-199.342118,0.00031644,7]
[426567074,1782597044000,-151.0,0.00031507,7]
[426567084,1782597044000,-215.6642,0.00031644,7]
[426567095,1782597044000,-184.0,0.00031644,30]
[426567086,1782597044000,-553.0,0.00031644,30]
[426567082,1782597044000,-215.6642,0.00031644,7]
[426567085,1782597044000,-215.6642,0.00031644,7]
[426567083,1782597044000,-215.6642,0.00031644,7]
[426567088,1782597044000,-210.0,0.00031644,30]
[426567092,1782597044000,-167.0,0.00031644,30]
[426567091,1782597044000,-195.0,0.00031644,30]
[426567090,1782597044000,-568.0,0.00031644,30]
[426567089,1782597044000,-153.0,0.00031644,30]
[426567093,1782597044000,-831.0,0.00031644,30]
[426567098,1782597044000,-204.54,0.00031691,3]
[426567097,1782597044000,-260.0,0.00031644,30]
[426567071,1782597044000,-157.133539,0.00031507,7]
[426567087,1782597044000,-520.0,0.00031644,30]
[426567068,1782597044000,-157.133539,0.00031507,7]
[426567096,1782597044000,-156.0,0.00031644,30]
[426567066,1782597044000,-151.0,0.00031507,7]
[426567042,1782597044000,-153.985692,0.00031507,7]
[426567039,1782597044000,-151.0,0.00031507,7]
[426567041,1782597044000,-151.0,0.00031507,7]
[426567043,1782597044000,-151.713643,0.00031507,7]
[426567040,1782597044000,-151.0,0.00031507,7]
[426567044,1782597044000,-155.481014,0.00031507,7]
[426567046,1782597044000,-151.0,0.00031507,7]
[426567051,1782597044000,-151.0,0.00031507,7]
[426567047,1782597044000,-151.0,0.00031507,7]
[426567049,1782597044000,-151.0,0.00031507,7]
[426567048,1782597044000,-151.0,0.00031507,7]
[426567050,1782597044000,-151.0,0.00031507,7]
[426567045,1782597044000,-151.0,0.00031507,7]
[426567052,1782597044000,-156.231977,0.00031507,7]
[426567055,1782597044000,-151.0,0.00031507,7]
[426567056,1782597044000,-151.0,0.00031507,7]
[426567053,1782597044000,-151.0,0.00031507,7]
[426567054,1782597044000,-151.0,0.00031507,7]
[426567061,1782597044000,-151.0,0.00031507,7]
[426567057,1782597044000,-151.0,0.00031507,7]
[426567060,1782597044000,-151.0,0.00031507,7]
[426567062,1782597044000,-151.0,0.00031507,7]
[426567058,1782597044000,-151.0,0.00031507,7]
[426567059,1782597044000,-151.0,0.00031507,7]
[426567063,1782597044000,-175.659188,0.00031507,7]
[426567064,1782597044000,-151.0,0.00031507,7]
[426567065,1782597044000,-161.656426,0.00031507,7]
[426567067,1782597044000,-151.0,0.00031507,7]
[426567094,1782597044000,-162.0,0.00031644,30]
[426567155,1782597044000,-170.0,0.00032644,30]
[426567099,1782597044000,-251.2964788,0.00031796,2]
[426567136,1782597044000,-151.0,0.00032644,7]
[426567135,1782597044000,-151.0,0.00032644,7]
[426567134,1782597044000,-151.0,0.00032644,7]
[426567132,1782597044000,-151.0,0.00032644,7]
[426567138,1782597044000,-151.0,0.00032644,7]
[426567137,1782597044000,-151.0,0.00032644,7]
[426567139,1782597044000,-738.507978,0.00032644,7]
[426567140,1782597044000,-738.507978,0.00032644,7]
[426567141,1782597044000,-738.507978,0.00032644,7]
[426567142,1782597044000,-738.507978,0.00032644,7]
[426567144,1782597044000,-151.0,0.00032644,7]
[426567143,1782597044000,-151.0,0.00032644,7]
[426567145,1782597044000,-151.0,0.00032644,7]
[426567148,1782597044000,-520.0,0.00032644,30]
[426567147,1782597044000,-553.0,0.00032644,30]
[426567146,1782597044000,-158.937491,0.00032644,7]
[426567149,1782597044000,-210.0,0.00032644,30]
[426567150,1782597044000,-153.0,0.00032644,30]
[426567153,1782597044000,-167.0,0.00032644,30]
[426567151,1782597044000,-568.0,0.00032644,30]
[426567152,1782597044000,-195.0,0.00032644,30]
[426567154,1782597044000,-831.0,0.00032644,30]
[426567157,1782597044000,-156.0,0.00032644,30]
[426567158,1782597044000,-260.0,0.00032644,30]
[426567159,1782597044000,-203.95,0.00032703,3]
[426567156,1782597044000,-184.0,0.00032644,30]
[426567100,1782597044000,-908.48,0.00031963,30]
[426567133,1782597044000,-158.994208,0.00032644,7]
[426567131,1782597044000,-151.0,0.00032644,7]
[426567160,1782597044000,-224.76231871,0.00032714,2]
[426567126,1782597044000,-151.0,0.00032644,7]
[426567104,1782597044000,-496.14,0.0003207,7]
[426567102,1782597044000,-382.304854,0.00031992,7]
[426567101,1782597044000,-152.0,0.00031986,6]
[426567103,1782597044000,-500.0,0.0003207,120]
[426567105,1782597044000,-500.0,0.0003207,7]
[426567106,1782597044000,-35575.0,0.00032071,20]
[426567108,1782597044000,-200.0,0.000322,12]
[426567111,1782597044000,-1164.29419662,0.00032485,30]
[426567110,1782597044000,-156.45618948,0.00032302,2]
[426567107,1782597044000,-164.34,0.00032142,30]
[426567112,1782597044000,-722.09,0.00032567,2]
[426567113,1782597044000,-722.09,0.00032569,2]
[426567115,1782597044000,-722.09,0.00032571,2]
[426567109,1782597044000,-630.88,0.00032232,7]
[426567116,1782597044000,-722.09,0.00032573,2]
[426567128,1782597044000,-151.0,0.00032644,7]
[426567114,1782597044000,-722.09,0.00032571,2]
[426567127,1782597044000,-151.0,0.00032644,7]
[426567130,1782597044000,-151.0,0.00032644,7]
[426567125,1782597044000,-151.0,0.00032644,7]
[426567121,1782597044000,-151.0,0.00032644,7]
[426567123,1782597044000,-151.0,0.00032644,7]
[426567129,1782597044000,-151.0,0.00032644,7]
[426567118,1782597044000,-722.07,0.00032575,2]
[426567119,1782597044000,-722.09,0.00032575,2]
[426567122,1782597044000,-151.0,0.00032644,7]
[426567120,1782597044000,-182.0,0.00032628,10]
[426567117,1782597044000,-722.09,0.00032573,2]
[426567124,1782597044000,-155.165067,0.00032644,7]
[426567202,1782597045000,-151.0,0.00032897,7]
[426567199,1782597045000,-151.0,0.00032897,7]
[426567198,1782597045000,-151.0,0.00032897,7]
[426567196,1782597045000,-151.0,0.00032897,7]
[426567201,1782597045000,-151.0,0.00032897,7]
[426567192,1782597045000,-215.6642,0.00032897,7]
[426567197,1782597045000,-151.0,0.00032897,7]
[426567191,1782597045000,-215.6642,0.00032897,7]
[426567195,1782597045000,-151.0,0.00032897,7]
[426567203,1782597045000,-206.437217,0.00032897,7]
[426567200,1782597045000,-151.0,0.00032897,7]
[426567189,1782597045000,-215.6642,0.00032897,7]
[426567217,1782597045000,-157.133539,0.00032897,7]
[426567205,1782597045000,-151.0,0.00032897,7]
[426567206,1782597045000,-151.0,0.00032897,7]
[426567208,1782597045000,-151.0,0.00032897,7]
[426567207,1782597045000,-151.0,0.00032897,7]
[426567210,1782597045000,-151.0,0.00032897,7]
[426567209,1782597045000,-151.0,0.00032897,7]
[426567212,1782597045000,-253.199314,0.00032897,7]
[426567211,1782597045000,-151.0,0.00032897,7]
[426567213,1782597045000,-157.133539,0.00032897,7]
[426567215,1782597045000,-151.0,0.00032897,7]
[426567214,1782597045000,-157.133539,0.00032897,7]
[426567216,1782597045000,-157.133539,0.00032897,7]
[426567188,1782597045000,-151.0,0.00032897,7]
[426567204,1782597045000,-151.0,0.00032897,7]
[426567194,1782597045000,-151.0,0.00032897,7]
[426567175,1782597045000,-151.0,0.00032897,7]
[426567193,1782597045000,-151.0,0.00032897,7]
[426567219,1782597045000,-151.0,0.00032897,7]
[426567162,1782597045000,-822.22625349,0.00032797,2]
[426567161,1782597045000,-2175.06043791,0.00032725,2]
[426567163,1782597045000,-564.60534158,0.00032797,2]
[426567165,1782597045000,-1481.86182149,0.00032797,2]
[426567167,1782597045000,-932.89,0.000328,7]
[426567168,1782597045000,-155.671445,0.00032877,7]
[426567169,1782597045000,-584.84510421,0.00032896,120]
[426567166,1782597045000,-753.90893959,0.00032797,2]
[426567170,1782597045000,-348.39,0.00032896,7]
[426567171,1782597045000,-1205188.4785105,0.00032897,2]
[426567173,1782597045000,-154.677963,0.00032897,7]
[426567190,1782597045000,-215.6642,0.00032897,7]
[426567172,1782597045000,-153.133141,0.00032897,7]
[426567174,1782597045000,-151.0,0.00032897,7]
[426567180,1782597045000,-151.0,0.00032897,7]
[426567178,1782597045000,-154.561291,0.00032897,7]
[426567179,1782597045000,-151.0,0.00032897,7]
[426567177,1782597045000,-151.0,0.00032897,7]
[426567181,1782597045000,-153.848786,0.00032897,7]
[426567182,1782597045000,-151.0,0.00032897,7]
[426567184,1782597045000,-151.0,0.00032897,7]
[426567186,1782597045000,-151.0,0.00032897,7]
[426567183,1782597045000,-190.103106,0.00032897,7]
[426567185,1782597045000,-168.625496,0.00032897,7]